Workbook

Sheet Команды БСМ
A1: БСМ 2022-2023, 32 ТУР.
A2: № | B2: А | C2: Игрок | D2: НБА | E2: БСМ | F2: рез. | G2: день1 | H2: день2 | I2: день3 | J2: id | K2: ОСНОВА | L2: игр | M2: ОЧКИ
A3: 1 | B3: З | C3: CJ McCollum | D3: NOP | E3: Атл | F3: =MAX(G3,H3,I3) -> 20 | G3: 20 | J3: 5161 | K3: 1 | L3: 1 | M3: =SUM(F3:F8)+N3 -> 103 | O3: (З.CJ McCollum-20(NOP *), З.Russell Westbrook-17(LAL *), З.Tyrese Maxey-0(PHI *), Ф.Saddiq Bey-21(DET ), Ф.Grayson Allen-9(MIL *), Ц.Julius Randle-36(NYK )); скамейка: [З.James Harden-0(PHI *), Ф.Kevin Durant-0(BKN *), Ф.Michael Porter Jr.-0(DEN *), Ц.Kevin Love-0(CLE )]
A4: 5 | B4: З | C4: Russell Westbrook | D4: LAL | E4: Атл | F4: =MAX(G4,H4,I4) -> 17 | G4: 17 | J4: 4390 | K4: 1 | L4: 1 | M4: =SUM(F9:F12) -> 0 | O4: CJ McCollum-20 (NOP *) Russell Westbrook-17 (LAL *) Tyrese Maxey-0 (PHI *) ... James Harden-0 (PHI *) $ Saddiq Bey-21 (DET ) Grayson Allen-9 (MIL *) ... Kevin Durant-0 (BKN *) Michael Porter Jr.-0 (DEN *) $ Julius Randle-36 (NYK ) ... Kevin Love-0 (CLE )
A5: 4 | B5: З | C5: Tyrese Maxey | D5: PHI | E5: Атл | F5: =MAX(G5,H5,I5) -> 0 | J5: 6413 | K5: 1 | L5: 1 | M5: =SUM(M3:M4) -> 103
A6: 9 | B6: Ф | C6: Saddiq Bey | D6: DET | E6: Атл | F6: =MAX(G6,H6,I6) -> 21 | G6: 21 | J6: 6411 | K6: 1 | L6: 0
A7: 3 | B7: Ф | C7: Grayson Allen | D7: MIL | E7: Атл | F7: =MAX(G7,H7,I7) -> 9 | G7: 9 | J7: 6032 | K7: 1 | L7: 1
A8: 8 | B8: Ц | C8: Julius Randle | D8: NYK | E8: Атл | F8: =MAX(G8,H8,I8) -> 36 | G8: 36 | J8: 5318 | K8: 1 | L8: 0
A9: 2 | B9: З | C9: James Harden | D9: PHI | E9: Атл | F9: =MAX(G9,H9,I9) -> 0 | J9: 4563 | L9: 1
A10: 6 | B10: Ф | C10: Kevin Durant | D10: BKN | E10: Атл | F10: =MAX(G10,H10,I10) -> 0 | J10: 4244 | L10: 1
A11: 7 | B11: Ф | C11: Michael Porter Jr. | D11: DEN | E11: Атл | F11: =MAX(G11,H11,I11) -> 0 | J11: 6025 | L11: 1
A12: 10 | B12: Ц | C12: Kevin Love | D12: CLE | E12: Атл | F12: =MAX(G12,H12,I12) -> 0 | G12: 0 | J12: 4391 | L12: 0
A13: 7 | B13: З | C13: Bennedict Mathurin | D13: IND | E13: Бос | F13: =MAX(G13,H13,I13) -> 26 | G13: 26 | J13: 6696 | K13: 1 | L13: 1 | M13: =SUM(F13:F18)+N13 -> 102 | O13: (З.Bennedict Mathurin-26(IND *), З.Monte Morris-13(WAS *), Ф.Walker Kessler-13(UTA *), Ф.Alec Burks-4(DET ), Ц.Myles Turner-26(IND *), Ц.Nikola Vucevic-20(CHI )); скамейка: [З.Damion Lee-11(PHX ), З.Hamidou Diallo-11(DET ), Ф.Rui Hachimura-0(WAS *), Ф.Joe Wieskamp-0(SAS *)]
A14: 2 | B14: З | C14: Monte Morris | D14: WAS | E14: Бос | F14: =MAX(G14,H14,I14) -> 13 | G14: 13 | J14: 5864 | K14: 1 | L14: 1 | M14: =SUM(F19:F22) -> 22 | O14: Bennedict Mathurin-26 (IND *) Monte Morris-13 (WAS *) ... Damion Lee-11 (PHX ) Hamidou Diallo-11 (DET ) $ Walker Kessler-13 (UTA *) Alec Burks-4 (DET ) ... Rui Hachimura-0 (WAS *) Joe Wieskamp-0 (SAS *) $ Myles Turner-26 (IND *) Nikola Vucevic-20 (CHI )
A15: 8 | B15: Ф | C15: Walker Kessler | D15: UTA | E15: Бос | F15: =MAX(G15,H15,I15) -> 13 | G15: 13 | J15: 6712 | K15: 1 | L15: 1 | M15: =SUM(M13:M14) -> 124
A16: 4 | B16: Ф | C16: Alec Burks | D16: DET | E16: Бос | F16: =MAX(G16,H16,I16) -> 4 | G16: 4 | J16: 4893 | K16: 1 | L16: 0
A17: 10 | B17: Ц | C17: Myles Turner | D17: IND | E17: Бос | F17: =MAX(G17,H17,I17) -> 26 | G17: 26 | J17: 5471 | K17: 1 | L17: 1
A18: 3 | B18: Ц | C18: Nikola Vucevic | D18: CHI | E18: Бос | F18: =MAX(G18,H18,I18) -> 20 | G18: 14 | H18: 20 | J18: 4897 | K18: 1 | L18: 0
A19: 9 | B19: З | C19: Damion Lee | D19: PHX | E19: Бос | F19: =MAX(G19,H19,I19) -> 11 | G19: 11 | J19: 5733 | L19: 0
A20: 6 | B20: З | C20: Hamidou Diallo | D20: DET | E20: Бос | F20: =MAX(G20,H20,I20) -> 11 | G20: 11 | J20: 6056 | L20: 0
A21: 1 | B21: Ф | C21: Rui Hachimura | D21: WAS | E21: Бос | F21: =MAX(G21,H21,I21) -> 0 | G21: - | J21: 6171 | L21: 1
A22: 5 | B22: Ф | C22: Joe Wieskamp | D22: SAS | E22: Бос | F22: =MAX(G22,H22,I22) -> 0 | J22: 6583 | L22: 1
A23: 1 | B23: З | C23: Zach LaVine | D23: CHI | E23: Ваш | F23: =MAX(G23,H23,I23) -> 20 | G23: 20 | H23: 14 | J23: 5324 | K23: 1 | L23: 0 | M23: =SUM(F23:F28)+N23 -> 106 | O23: (З.Zach LaVine-20(CHI ), З.Romeo Langford-12(SAS *), Ф.Paul George-27(LAC ), Ф.Eric Gordon-14(HOU *), Ц.Mason Plumlee-18(CHA ), Ц.Jock Landale-15(PHX )); скамейка: [З.Stephen Curry-0(GSW *), З.LaMelo Ball-0(CHA ), Ф.KJ Martin-6(HOU *), Ф.Aaron Wiggins-0(OKC *)]
A24: 6 | B24: З | C24: Romeo Langford | D24: SAS | E24: Ваш | F24: =MAX(G24,H24,I24) -> 12 | G24: 12 | J24: 6176 | K24: 1 | L24: 1 | M24: =SUM(F29:F32) -> 6 | O24: Zach LaVine-20 (CHI ) Romeo Langford-12 (SAS *) ... Stephen Curry-0 (GSW *) LaMelo Ball-0 (CHA ) $ Paul George-27 (LAC ) Eric Gordon-14 (HOU *) ... KJ Martin-6 (HOU *) Aaron Wiggins-0 (OKC *) $ Mason Plumlee-18 (CHA ) Jock Landale-15 (PHX )
A25: 3 | B25: Ф | C25: Paul George | D25: LAC | E25: Ваш | F25: =MAX(G25,H25,I25) -> 27 | G25: 27 | J25: 4725 | K25: 1 | L25: 0 | M25: =SUM(M23:M24) -> 112
A26: 7 | B26: Ф | C26: Eric Gordon | D26: HOU | E26: Ваш | F26: =MAX(G26,H26,I26) -> 14 | G26: 14 | J26: 4469 | K26: 1 | L26: 1
A27: 5 | B27: Ц | C27: Mason Plumlee | D27: CHA | E27: Ваш | F27: =MAX(G27,H27,I27) -> 18 | G27: 18 | H27: 17 | J27: 5192 | K27: 1 | L27: 0
A28: 9 | B28: Ц | C28: Jock Landale | D28: PHX | E28: Ваш | F28: =MAX(G28,H28,I28) -> 15 | G28: 15 | J28: 6614 | K28: 1 | L28: 0
A29: 8 | B29: З | C29: Stephen Curry | D29: GSW | E29: Ваш | F29: =MAX(G29,H29,I29) -> 0 | J29: 4612 | L29: 1
A30: 10 | B30: З | C30: LaMelo Ball | D30: CHA | E30: Ваш | F30: =MAX(G30,H30,I30) -> 0 | J30: 6395 | L30: 0
A31: 2 | B31: Ф | C31: KJ Martin | D31: HOU | E31: Ваш | F31: =MAX(G31,H31,I31) -> 6 | G31: 6 | J31: 6444 | L31: 1
A32: 4 | B32: Ф | C32: Aaron Wiggins | D32: OKC | E32: Ваш | F32: =MAX(G32,H32,I32) -> 0 | J32: 6597 | L32: 1
A33: 8 | B33: З | C33: Dillon Brooks | D33: MEM | E33: ГСУ | F33: =MAX(G33,H33,I33) -> 13 | G33: 13 | J33: 5858 | K33: 1 | L33: 1 | M33: =SUM(F33:F38)+N33 -> 106 | O33: (З.Dillon Brooks-13(MEM *), З.Isaac Okoro-9(CLE ), Ф.Trey Lyles-24(SAC *), Ф.Keegan Murray-20(SAC *), Ц.Jusuf Nurkic-25(POR *), Ц.Thomas Bryant-15(LAL *)); скамейка: [З.Andrew Nembhard-0(IND *), З.Kendrick Nunn-0(LAL *), Ф.Doug McDermott-13(SAS *), Ц.Jakob Poeltl-14(SAS *)]
A34: 2 | B34: З | C34: Isaac Okoro | D34: CLE | E34: ГСУ | F34: =MAX(G34,H34,I34) -> 9 | G34: 9 | J34: 6397 | K34: 1 | L34: 0 | M34: =SUM(F39:F42) -> 27 | O34: Dillon Brooks-13 (MEM *) Isaac Okoro-9 (CLE ) ... Andrew Nembhard-0 (IND *) Kendrick Nunn-0 (LAL *) $ Trey Lyles-24 (SAC *) Keegan Murray-20 (SAC *) ... Doug McDermott-13 (SAS *) $ Jusuf Nurkic-25 (POR *) Thomas Bryant-15 (LAL *) ... Jakob Poeltl-14 (SAS *)
A35: 7 | B35: Ф | C35: Trey Lyles | D35: SAC | E35: ГСУ | F35: =MAX(G35,H35,I35) -> 24 | G35: 24 | J35: 5472 | K35: 1 | L35: 1 | M35: =SUM(M33:M34) -> 133
A36: 1 | B36: Ф | C36: Keegan Murray | D36: SAC | E36: ГСУ | F36: =MAX(G36,H36,I36) -> 20 | G36: 20 | J36: 6694 | K36: 1 | L36: 1
A37: 6 | B37: Ц | C37: Jusuf Nurkic | D37: POR | E37: ГСУ | F37: =MAX(G37,H37,I37) -> 25 | G37: 25 | J37: 5327 | K37: 1 | L37: 1
A38: 9 | B38: Ц | C38: Thomas Bryant | D38: LAL | E38: ГСУ | F38: =MAX(G38,H38,I38) -> 15 | G38: 15 | J38: 5855 | K38: 1 | L38: 1
A39: 4 | B39: З | C39: Andrew Nembhard | D39: IND | E39: ГСУ | F39: =MAX(G39,H39,I39) -> 0 | G39: - | J39: 6721 | L39: 1
A40: 5 | B40: З | C40: Kendrick Nunn | D40: LAL | E40: ГСУ | F40: =MAX(G40,H40,I40) -> 0 | J40: 6114 | L40: 1
A41: 3 | B41: Ф | C41: Doug McDermott | D41: SAS | E41: ГСУ | F41: =MAX(G41,H41,I41) -> 13 | G41: 13 | J41: 5322 | L41: 1
A42: 10 | B42: Ц | C42: Jakob Poeltl | D42: SAS | E42: ГСУ | F42: =MAX(G42,H42,I42) -> 14 | G42: 14 | J42: 5640 | L42: 1
A43: 2 | B43: З | C43: Damian Lillard | D43: POR | E43: Дал | F43: =MAX(G43,H43,I43) -> 37 | G43: 37 | J43: 5012 | K43: 1 | L43: 1 | M43: =SUM(F43:F48)+N43 -> 103 | O43: (З.Damian Lillard-37(POR *), З.Dejounte Murray-20(ATL *), З.T.J. McConnell-20(IND *), Ф.Kevin Huerter-5(SAC *), Ф.Jabari Smith Jr-0(HOU *), Ц.Brook Lopez-21(MIL *)); скамейка: [З.Jalen Brunson-14(NYK ), Ф.Jimmy Butler-0(MIA ), Ф.Oshae Brissett-0(IND *), Ц.Ivica Zubac-6(LAC )]
A44: 1 | B44: З | C44: Dejounte Murray | D44: ATL | E44: Дал | F44: =MAX(G44,H44,I44) -> 20 | G44: 20 | J44: 5660 | K44: 1 | L44: 1 | M44: =SUM(F49:F52) -> 20 | O44: Damian Lillard-37 (POR *) Dejounte Murray-20 (ATL *) T.J. McConnell-20 (IND *) ... Jalen Brunson-14 (NYK ) $ Kevin Huerter-5 (SAC *) Jabari Smith Jr-0 (HOU *) ... Jimmy Butler-0 (MIA ) Oshae Brissett-0 (IND *) $ Brook Lopez-21 (MIL *) ... Ivica Zubac-6 (LAC )
A45: 7 | B45: З | C45: T.J. McConnell | D45: IND | E45: Дал | F45: =MAX(G45,H45,I45) -> 20 | G45: 20 | J45: 5582 | K45: 1 | L45: 1 | M45: =SUM(M43:M44) -> 123
A46: 10 | B46: Ф | C46: Kevin Huerter | D46: SAC | E46: Дал | F46: =MAX(G46,H46,I46) -> 5 | G46: 5 | J46: 6030 | K46: 1 | L46: 1
A47: 8 | B47: Ф | C47: Jabari Smith Jr | D47: HOU | E47: Дал | F47: =MAX(G47,H47,I47) -> 0 | J47: 6693 | K47: 1 | L47: 1
A48: 6 | B48: Ц | C48: Brook Lopez | D48: MIL | E48: Дал | F48: =MAX(G48,H48,I48) -> 21 | G48: 21 | J48: 4472 | K48: 1 | L48: 1
A49: 3 | B49: З | C49: Jalen Brunson | D49: NYK | E49: Дал | F49: =MAX(G49,H49,I49) -> 14 | G49: 14 | J49: 6044 | L49: 0
A50: 4 | B50: Ф | C50: Jimmy Butler | D50: MIA | E50: Дал | F50: =MAX(G50,H50,I50) -> 0 | J50: 4912 | L50: 0
A51: 5 | B51: Ф | C51: Oshae Brissett | D51: IND | E51: Дал | F51: =MAX(G51,H51,I51) -> 0 | J51: 6290 | L51: 1
A52: 9 | B52: Ц | C52: Ivica Zubac | D52: LAC | E52: Дал | F52: =MAX(G52,H52,I52) -> 6 | G52: 6 | J52: 5663 | L52: 0
A53: 6 | B53: З | C53: Jose Alvarado | D53: NOP | E53: Ден | F53: =MAX(G53,H53,I53) -> 17 | G53: 17 | J53: 6613 | K53: 1 | L53: 1 | M53: =SUM(F53:F58)+N53 -> 79 | O53: (З.Jose Alvarado-17(NOP *), З.Tre Jones-12(SAS *), Ф.Jayson Tatum-31(BOS ), Ф.Obi Toppin-11(NYK ), Ф.Ochai Agbaji-8(UTA *), Ц.Onyeka Okongwu-0(ATL *)); скамейка: [З.Bones Hyland-0(DEN *), З.Moses Moody-0(GSW *), З.Brandon Boston Jr.-0(LAC ), Ф.Kevin Porter Jr.-0(HOU *)]
A54: 2 | B54: З | C54: Tre Jones | D54: SAS | E54: Ден | F54: =MAX(G54,H54,I54) -> 12 | G54: 12 | J54: 6433 | K54: 1 | L54: 1 | M54: =SUM(F59:F62) -> 0 | O54: Jose Alvarado-17 (NOP *) Tre Jones-12 (SAS *) ... Bones Hyland-0 (DEN *) Moses Moody-0 (GSW *) Brandon Boston Jr.-0 (LAC ) $ Jayson Tatum-31 (BOS ) Obi Toppin-11 (NYK ) Ochai Agbaji-8 (UTA *) ... Kevin Porter Jr.-0 (HOU *) $ Onyeka Okongwu-0 (ATL *)
A55: 9 | B55: Ф | C55: Jayson Tatum | D55: BOS | E55: Ден | F55: =MAX(G55,H55,I55) -> 31 | G55: 26 | H55: 31 | J55: 5765 | K55: 1 | L55: 0 | M55: =SUM(M53:M54) -> 79
A56: 5 | B56: Ф | C56: Obi Toppin | D56: NYK | E56: Ден | F56: =MAX(G56,H56,I56) -> 11 | G56: 11 | J56: 6400 | K56: 1 | L56: 0
A57: 8 | B57: Ф | C57: Ochai Agbaji | D57: UTA | E57: Ден | F57: =MAX(G57,H57,I57) -> 8 | G57: 8 | J57: 6704 | K57: 1 | L57: 1
A58: 10 | B58: Ц | C58: Onyeka Okongwu | D58: ATL | E58: Ден | F58: =MAX(G58,H58,I58) -> 0 | J58: 6398 | K58: 1 | L58: 1
A59: 1 | B59: З | C59: Bones Hyland | D59: DEN | E59: Ден | F59: =MAX(G59,H59,I59) -> 0 | J59: 6568 | L59: 1
A60: 3 | B60: З | C60: Moses Moody | D60: GSW | E60: Ден | F60: =MAX(G60,H60,I60) -> 0 | J60: 6556 | L60: 1
A61: 7 | B61: З | C61: Brandon Boston Jr. | D61: LAC | E61: Ден | F61: =MAX(G61,H61,I61) -> 0 | J61: 6593 | L61: 0
A62: 4 | B62: Ф | C62: Kevin Porter Jr. | D62: HOU | E62: Ден | F62: =MAX(G62,H62,I62) -> 0 | J62: 6218 | L62: 1
A63: 1 | B63: З | C63: Jordan Clarkson | D63: UTA | E63: Инд | F63: =MAX(G63,H63,I63) -> 18 | G63: 18 | J63: 5357 | K63: 1 | L63: 1 | M63: =SUM(F63:F68)+N63 -> 68 | O63: (З.Jordan Clarkson-18(UTA *), З.Duane Washington Jr.-8(PHX ), Ф.Corey Kispert-14(WAS *), Ф.Max Strus-13(MIA ), Ф.Caris LeVert-9(CLE ), Ц.Al Horford-6(BOS )); скамейка: [З.Markelle Fultz-8(ORL *), З.Jordan Poole-0(GSW *), Ф.Anthony Lamb-0(GSW *), Ц.Montrezl Harrell-0(PHI *)]
A64: 2 | B64: З | C64: Duane Washington Jr. | D64: PHX | E64: Инд | F64: =MAX(G64,H64,I64) -> 8 | G64: 8 | J64: 6607 | K64: 1 | L64: 0 | M64: =SUM(F69:F72) -> 8 | O64: Jordan Clarkson-18 (UTA *) Duane Washington Jr.-8 (PHX ) ... Markelle Fultz-8 (ORL *) Jordan Poole-0 (GSW *) $ Corey Kispert-14 (WAS *) Max Strus-13 (MIA ) Caris LeVert-9 (CLE ) ... Anthony Lamb-0 (GSW *) $ Al Horford-6 (BOS ) ... Montrezl Harrell-0 (PHI *)
A65: 9 | B65: Ф | C65: Corey Kispert | D65: WAS | E65: Инд | F65: =MAX(G65,H65,I65) -> 14 | G65: 14 | J65: 6557 | K65: 1 | L65: 1 | M65: =SUM(M63:M64) -> 76
A66: 7 | B66: Ф | C66: Max Strus | D66: MIA | E66: Инд | F66: =MAX(G66,H66,I66) -> 13 | G66: 13 | J66: 6267 | K66: 1 | L66: 0
A67: 6 | B67: Ф | C67: Caris LeVert | D67: CLE | E67: Инд | F67: =MAX(G67,H67,I67) -> 9 | G67: 9 | J67: 5651 | K67: 1 | L67: 0
A68: 10 | B68: Ц | C68: Al Horford | D68: BOS | E68: Инд | F68: =MAX(G68,H68,I68) -> 6 | G68: 6 | J68: 4245 | K68: 1 | L68: 0
A69: 5 | B69: З | C69: Markelle Fultz | D69: ORL | E69: Инд | F69: =MAX(G69,H69,I69) -> 8 | G69: 8 | J69: 5763 | L69: 1
A70: 4 | B70: З | C70: Jordan Poole | D70: GSW | E70: Инд | F70: =MAX(G70,H70,I70) -> 0 | J70: 6216 | L70: 1
A71: 3 | B71: Ф | C71: Anthony Lamb | D71: GSW | E71: Инд | F71: =MAX(G71,H71,I71) -> 0 | J71: 6496 | L71: 1
A72: 8 | B72: Ц | C72: Montrezl Harrell | D72: PHI | E72: Инд | F72: =MAX(G72,H72,I72) -> 0 | J72: 5492 | L72: 1
A73: 1 | B73: З | C73: Bruce Brown | D73: DEN | E73: Клв | F73: =MAX(G73,H73,I73) -> 11 | G73: 11 | J73: 6053 | K73: 1 | L73: 1 | M73: =SUM(F73:F78)+N73 -> 67 | O73: (З.Bruce Brown-11(DEN *), З.Immanuel Quickley-9(NYK ), Ф.Dorian Finney-Smith-12(DAL ), Ф.Aaron Gordon-11(DEN *), Ф.Santi Aldama-8(MEM *), Ц.Clint Capela-16(ATL *)); скамейка: [З.Fred VanVleet-0(TOR *), З.Landry Shamet-0(PHX ), Ф.Pat Connaughton-6(MIL *), Ц.Pascal Siakam-0(TOR *)]
A74: 4 | B74: З | C74: Immanuel Quickley | D74: NYK | E74: Клв | F74: =MAX(G74,H74,I74) -> 9 | G74: 9 | J74: 6417 | K74: 1 | L74: 0 | M74: =SUM(F79:F82) -> 6 | O74: Bruce Brown-11 (DEN *) Immanuel Quickley-9 (NYK ) ... Fred VanVleet-0 (TOR *) Landry Shamet-0 (PHX ) $ Dorian Finney-Smith-12 (DAL ) Aaron Gordon-11 (DEN *) Santi Aldama-8 (MEM *) ... Pat Connaughton-6 (MIL *) $ Clint Capela-16 (ATL *) ... Pascal Siakam-0 (TOR *)
A75: 5 | B75: Ф | C75: Dorian Finney-Smith | D75: DAL | E75: Клв | F75: =MAX(G75,H75,I75) -> 12 | G75: 12 | J75: 5693 | K75: 1 | L75: 0 | M75: =SUM(M73:M74) -> 73
A76: 9 | B76: Ф | C76: Aaron Gordon | D76: DEN | E76: Клв | F76: =MAX(G76,H76,I76) -> 11 | G76: 11 | J76: 5295 | K76: 1 | L76: 1
A77: 2 | B77: Ф | C77: Santi Aldama | D77: MEM | E77: Клв | F77: =MAX(G77,H77,I77) -> 8 | G77: 8 | J77: 6572 | K77: 1 | L77: 1
A78: 6 | B78: Ц | C78: Clint Capela | D78: ATL | E78: Клв | F78: =MAX(G78,H78,I78) -> 16 | G78: 16 | J78: 5336 | K78: 1 | L78: 1
A79: 3 | B79: З | C79: Fred VanVleet | D79: TOR | E79: Клв | F79: =MAX(G79,H79,I79) -> 0 | J79: 5727 | L79: 1
A80: 7 | B80: З | C80: Landry Shamet | D80: PHX | E80: Клв | F80: =MAX(G80,H80,I80) -> 0 | J80: 6037 | L80: 0
A81: 8 | B81: Ф | C81: Pat Connaughton | D81: MIL | E81: Клв | F81: =MAX(G81,H81,I81) -> 6 | G81: 6 | J81: 5501 | L81: 1
A82: 10 | B82: Ц | C82: Pascal Siakam | D82: TOR | E82: Клв | F82: =MAX(G82,H82,I82) -> 0 | J82: 5658 | L82: 1
A83: 2 | B83: З | C83: D'Angelo Russell | D83: MIN | E83: ЛАЛ | F83: =MAX(G83,H83,I83) -> 30 | G83: 30 | J83: 5433 | K83: 1 | L83: 1 | M83: =SUM(F83:F88)+N83 -> 111 | O83: (З.D'Angelo Russell-30(MIN *), З.Mike Conley-14(UTA *), Ф.Giannis Antetokounmpo-29(MIL *), Ф.Ziaire Williams-9(MEM *), Ф.Nicolas Batum-4(LAC ), Ц.Nikola Jokic-25(DEN *)); скамейка: [З.Kyle Lowry-2(MIA ), З.Kyrie Irving-0(BKN *), З.Jaden Hardy-0(DAL ), Ф.Joel Embiid-0(PHI *)]
A84: 6 | B84: З | C84: Mike Conley | D84: UTA | E84: ЛАЛ | F84: =MAX(G84,H84,I84) -> 14 | G84: 14 | J84: 4246 | K84: 1 | L84: 1 | M84: =SUM(F89:F92) -> 2 | O84: D'Angelo Russell-30 (MIN *) Mike Conley-14 (UTA *) ... Kyle Lowry-2 (MIA ) Kyrie Irving-0 (BKN *) Jaden Hardy-0 (DAL ) $ Giannis Antetokounmpo-29 (MIL *) Ziaire Williams-9 (MEM *) Nicolas Batum-4 (LAC ) ... Joel Embiid-0 (PHI *) $ Nikola Jokic-25 (DEN *)
A85: 10 | B85: Ф | C85: Giannis Antetokounmpo | D85: MIL | E85: ЛАЛ | F85: =MAX(G85,H85,I85) -> 29 | G85: 29 | J85: 5185 | K85: 1 | L85: 1 | M85: =SUM(M83:M84) -> 113
A86: 9 | B86: Ф | C86: Ziaire Williams | D86: MEM | E86: ЛАЛ | F86: =MAX(G86,H86,I86) -> 9 | G86: 9 | J86: 6552 | K86: 1 | L86: 1
A87: 3 | B87: Ф | C87: Nicolas Batum | D87: LAC | E87: ЛАЛ | F87: =MAX(G87,H87,I87) -> 4 | G87: 4 | J87: 4487 | K87: 1 | L87: 0
A88: 4 | B88: Ц | C88: Nikola Jokic | D88: DEN | E88: ЛАЛ | F88: =MAX(G88,H88,I88) -> 25 | G88: 25 | J88: 5352 | K88: 1 | L88: 1
A89: 5 | B89: З | C89: Kyle Lowry | D89: MIA | E89: ЛАЛ | F89: =MAX(G89,H89,I89) -> 2 | G89: 2 | J89: 4152 | L89: 0
A90: 1 | B90: З | C90: Kyrie Irving | D90: BKN | E90: ЛАЛ | F90: =MAX(G90,H90,I90) -> 0 | J90: 4840 | L90: 1
A91: 7 | B91: З | C91: Jaden Hardy | D91: DAL | E91: ЛАЛ | F91: =MAX(G91,H91,I91) -> 0 | J91: 6727 | L91: 0
A92: 8 | B92: Ф | C92: Joel Embiid | D92: PHI | E92: ЛАЛ | F92: =MAX(G92,H92,I92) -> 0 | J92: 5294 | L92: 1
A93: 1 | B93: З | C93: Terry Rozier | D93: CHA | E93: Май | F93: =MAX(G93,H93,I93) -> 23 | G93: 23 | H93: 19 | J93: 5476 | K93: 1 | L93: 0 | M93: =SUM(F93:F98)+N93 -> 88 | O93: (З.Terry Rozier-23(CHA ), З.Cole Anthony-18(ORL *), З.Tyler Herro-9(MIA ), Ф.Norman Powell-22(LAC ), Ф.Kyle Anderson-2(MIN *), Ц.Domantas Sabonis-14(SAC *)); скамейка: [З.Tim Hardaway Jr.-5(DAL ), З.De'Anthony Melton-0(PHI *), Ф.Royce O'Neale-0(BKN *), Ф.Jalen Williams-0(OKC *)]
A94: 2 | B94: З | C94: Cole Anthony | D94: ORL | E94: Май | F94: =MAX(G94,H94,I94) -> 18 | G94: 18 | J94: 6407 | K94: 1 | L94: 1 | M94: =SUM(F99:F102) -> 5 | O94: Terry Rozier-23 (CHA ) Cole Anthony-18 (ORL *) Tyler Herro-9 (MIA ) ... Tim Hardaway Jr.-5 (DAL ) De'Anthony Melton-0 (PHI *) $ Norman Powell-22 (LAC ) Kyle Anderson-2 (MIN *) ... Royce O'Neale-0 (BKN *) Jalen Williams-0 (OKC *) $ Domantas Sabonis-14 (SAC *)
A95: 4 | B95: З | C95: Tyler Herro | D95: MIA | E95: Май | F95: =MAX(G95,H95,I95) -> 9 | G95: 9 | J95: 6175 | K95: 1 | L95: 0 | M95: =SUM(M93:M94) -> 93
A96: 5 | B96: Ф | C96: Norman Powell | D96: LAC | E96: Май | F96: =MAX(G96,H96,I96) -> 22 | G96: 22 | J96: 5506 | K96: 1 | L96: 0
A97: 3 | B97: Ф | C97: Kyle Anderson | D97: MIN | E97: Май | F97: =MAX(G97,H97,I97) -> 2 | G97: 2 | J97: 5341 | K97: 1 | L97: 1
A98: 8 | B98: Ц | C98: Domantas Sabonis | D98: SAC | E98: Май | F98: =MAX(G98,H98,I98) -> 14 | G98: 14 | J98: 5642 | K98: 1 | L98: 1
A99: 6 | B99: З | C99: Tim Hardaway Jr. | D99: DAL | E99: Май | F99: =MAX(G99,H99,I99) -> 5 | G99: 5 | J99: 5194 | L99: 0
A100: 9 | B100: З | C100: De'Anthony Melton | D100: PHI | E100: Май | F100: =MAX(G100,H100,I100) -> 0 | J100: 6057 | L100: 1
A101: 10 | B101: Ф | C101: Royce O'Neale | D101: BKN | E101: Май | F101: =MAX(G101,H101,I101) -> 0 | J101: 5905 | L101: 1
A102: 7 | B102: Ф | C102: Jalen Williams | D102: OKC | E102: Май | F102: =MAX(G102,H102,I102) -> 0 | J102: 6702 | L102: 1
A103: 1 | B103: З | C103: Spencer Dinwiddie | D103: DAL | E103: Мем | F103: =MAX(G103,H103,I103) -> 20 | G103: 20 | J103: 5349 | K103: 1 | L103: 0 | M103: =SUM(F103:F108)+N103 -> 63 | O103: (З.Spencer Dinwiddie-20(DAL ), З.Josh Okogie-9(PHX ), Ф.Jalen McDaniels-15(CHA ), Ф.Bogdan Bogdanovic-11(ATL *), Ф.Will Barton-8(WAS *), Ц.Christian Wood-0(DAL )); скамейка: [З.Seth Curry-0(BKN *), З.Ty Jerome-0(GSW *), З.Luguentz Dort-0(OKC *), Ф.Terence Davis-6(SAC *)]
A104: 8 | B104: З | C104: Josh Okogie | D104: PHX | E104: Мем | F104: =MAX(G104,H104,I104) -> 9 | G104: 9 | J104: 6031 | K104: 1 | L104: 0 | M104: =SUM(F109:F112) -> 6 | O104: Spencer Dinwiddie-20 (DAL ) Josh Okogie-9 (PHX ) ... Seth Curry-0 (BKN *) Ty Jerome-0 (GSW *) Luguentz Dort-0 (OKC *) $ Jalen McDaniels-15 (CHA ) Bogdan Bogdanovic-11 (ATL *) Will Barton-8 (WAS *) ... Terence Davis-6 (SAC *) $ Christian Wood-0 (DAL )
A105: 7 | B105: Ф | C105: Jalen McDaniels | D105: CHA | E105: Мем | F105: =MAX(G105,H105,I105) -> 15 | G105: 9 | H105: 15 | J105: 6240 | K105: 1 | L105: 0 | M105: =SUM(M103:M104) -> 69
A106: 6 | B106: Ф | C106: Bogdan Bogdanovic | D106: ATL | E106: Мем | F106: =MAX(G106,H106,I106) -> 11 | G106: 11 | J106: 5338 | K106: 1 | L106: 1
A107: 3 | B107: Ф | C107: Will Barton | D107: WAS | E107: Мем | F107: =MAX(G107,H107,I107) -> 8 | G107: 8 | J107: 5074 | K107: 1 | L107: 1
A108: 10 | B108: Ц | C108: Christian Wood | D108: DAL | E108: Мем | F108: =MAX(G108,H108,I108) -> 0 | J108: 5583 | K108: 1 | L108: 0
A109: 4 | B109: З | C109: Seth Curry | D109: BKN | E109: Мем | F109: =MAX(G109,H109,I109) -> 0 | J109: 5245 | L109: 1
A110: 2 | B110: З | C110: Ty Jerome | D110: GSW | E110: Мем | F110: =MAX(G110,H110,I110) -> 0 | J110: 6212 | L110: 1
A111: 9 | B111: З | C111: Luguentz Dort | D111: OKC | E111: Мем | F111: =MAX(G111,H111,I111) -> 0 | J111: 6254 | L111: 1
A112: 5 | B112: Ф | C112: Terence Davis | D112: SAC | E112: Мем | F112: =MAX(G112,H112,I112) -> 6 | G112: 6 | J112: 6280 | L112: 1
A113: 1 | B113: З | C113: Luka Doncic | D113: DAL | E113: Мил | F113: =MAX(G113,H113,I113) -> 41 | G113: 41 | J113: 6014 | K113: 1 | L113: 0 | M113: =SUM(F113:F118)+N113 -> 105 | O113: (З.Luka Doncic-41(DAL ), З.Jrue Holiday-16(MIL *), З.Killian Hayes-0(DET ), Ф.Kyle Kuzma-30(WAS *), Ф.Amir Coffey-0(LAC ), Ц.Bobby Portis-18(MIL *)); скамейка: [Ф.Darius Bazley-0(OKC *), Ф.Otto Porter Jr.-0(TOR *), Ф.Nikola Jovic-0(MIA ), Ц.Mo Bamba-0(ORL *)]
A114: 2 | B114: З | C114: Jrue Holiday | D114: MIL | E114: Мил | F114: =MAX(G114,H114,I114) -> 16 | G114: 16 | J114: 4622 | K114: 1 | L114: 1 | M114: =SUM(F119:F122) -> 0 | O114: Luka Doncic-41 (DAL ) Jrue Holiday-16 (MIL *) Killian Hayes-0 (DET ) $ Kyle Kuzma-30 (WAS *) Amir Coffey-0 (LAC ) ... Darius Bazley-0 (OKC *) Otto Porter Jr.-0 (TOR *) Nikola Jovic-0 (MIA ) $ Bobby Portis-18 (MIL *) ... Mo Bamba-0 (ORL *)
A115: 3 | B115: З | C115: Killian Hayes | D115: DET | E115: Мил | F115: =MAX(G115,H115,I115) -> 0 | J115: 6399 | K115: 1 | L115: 0 | M115: =SUM(M113:M114) -> 105
A116: 4 | B116: Ф | C116: Kyle Kuzma | D116: WAS | E116: Мил | F116: =MAX(G116,H116,I116) -> 30 | G116: 30 | J116: 5840 | K116: 1 | L116: 1
A117: 5 | B117: Ф | C117: Amir Coffey | D117: LAC | E117: Мил | F117: =MAX(G117,H117,I117) -> 0 | G117: 0 | J117: 6315 | K117: 1 | L117: 0
A118: 9 | B118: Ц | C118: Bobby Portis | D118: MIL | E118: Мил | F118: =MAX(G118,H118,I118) -> 18 | G118: 18 | J118: 5482 | K118: 1 | L118: 1
A119: 8 | B119: Ф | C119: Darius Bazley | D119: OKC | E119: Мил | F119: =MAX(G119,H119,I119) -> 0 | J119: 6211 | L119: 1
A120: 6 | B120: Ф | C120: Otto Porter Jr. | D120: TOR | E120: Мил | F120: =MAX(G120,H120,I120) -> 0 | J120: 5154 | L120: 1
A121: 7 | B121: Ф | C121: Nikola Jovic | D121: MIA | E121: Мил | F121: =MAX(G121,H121,I121) -> 0 | J121: 6717 | L121: 0
A122: 10 | B122: Ц | C122: Mo Bamba | D122: ORL | E122: Мил | F122: =MAX(G122,H122,I122) -> 0 | J122: 6017 | L122: 1
A123: 2 | B123: З | C123: Buddy Hield | D123: IND | E123: Мин | F123: =MAX(G123,H123,I123) -> 19 | G123: 19 | J123: 5637 | K123: 1 | L123: 1 | M123: =SUM(F123:F128)+N123 -> 98 | O123: (З.Buddy Hield-19(IND *), З.Tyus Jones-12(MEM *), Ф.Harrison Barnes-20(SAC *), Ф.Bol Bol-5(ORL *), Ц.Jalen Duren-23(DET ), Ц.Jaren Jackson Jr.-19(MEM *)); скамейка: [З.Jaylen Nowell-7(MIN *), З.Cameron Thomas-0(BKN *), Ф.Ben Simmons-0(BKN *), Ц.Rudy Gobert-15(MIN *)]
A124: 1 | B124: З | C124: Tyus Jones | D124: MEM | E124: Мин | F124: =MAX(G124,H124,I124) -> 12 | G124: 12 | J124: 5484 | K124: 1 | L124: 1 | M124: =SUM(F129:F132) -> 22 | O124: Buddy Hield-19 (IND *) Tyus Jones-12 (MEM *) ... Jaylen Nowell-7 (MIN *) Cameron Thomas-0 (BKN *) $ Harrison Barnes-20 (SAC *) Bol Bol-5 (ORL *) ... Ben Simmons-0 (BKN *) $ Jalen Duren-23 (DET ) Jaren Jackson Jr.-19 (MEM *) ... Rudy Gobert-15 (MIN *)
A125: 5 | B125: Ф | C125: Harrison Barnes | D125: SAC | E125: Мин | F125: =MAX(G125,H125,I125) -> 20 | G125: 20 | J125: 5013 | K125: 1 | L125: 1 | M125: =SUM(M123:M124) -> 120
A126: 9 | B126: Ф | C126: Bol Bol | D126: ORL | E126: Мин | F126: =MAX(G126,H126,I126) -> 5 | G126: 5 | J126: 6232 | K126: 1 | L126: 1
A127: 7 | B127: Ц | C127: Jalen Duren | D127: DET | E127: Мин | F127: =MAX(G127,H127,I127) -> 23 | G127: 23 | J127: 6703 | K127: 1 | L127: 0
A128: 10 | B128: Ц | C128: Jaren Jackson Jr. | D128: MEM | E128: Мин | F128: =MAX(G128,H128,I128) -> 19 | G128: 19 | J128: 6015 | K128: 1 | L128: 1
A129: 3 | B129: З | C129: Jaylen Nowell | D129: MIN | E129: Мин | F129: =MAX(G129,H129,I129) -> 7 | G129: 7 | J129: 6231 | L129: 1
A130: 6 | B130: З | C130: Cameron Thomas | D130: BKN | E130: Мин | F130: =MAX(G130,H130,I130) -> 0 | J130: 6569 | L130: 1
A131: 8 | B131: Ф | C131: Ben Simmons | D131: BKN | E131: Мин | F131: =MAX(G131,H131,I131) -> 0 | J131: 5600 | L131: 1
A132: 4 | B132: Ц | C132: Rudy Gobert | D132: MIN | E132: Мин | F132: =MAX(G132,H132,I132) -> 15 | G132: 15 | J132: 5197 | L132: 1
A133: 2 | B133: З | C133: Collin Sexton | D133: UTA | E133: Н-О | F133: =MAX(G133,H133,I133) -> 11 | G133: 11 | J133: 6019 | K133: 1 | L133: 1 | M133: =SUM(F133:F138)+N133 -> 90 | O133: (З.Collin Sexton-11(UTA *), З.Nassir Little-10(POR *), З.Caleb Martin-5(MIA ), Ф.Alperen Sengun-21(HOU *), Ф.Patrick Williams-18(CHI ), Ц.Lauri Markkanen-25(UTA *)); скамейка: [З.Aaron Nesmith-3(IND *), Ф.Jerami Grant-3(POR *), Ф.Caleb Houstan-0(ORL *), Ф.OG Anunoby-0(TOR *)]
A134: 6 | B134: З | C134: Nassir Little | D134: POR | E134: Н-О | F134: =MAX(G134,H134,I134) -> 10 | G134: 10 | J134: 6213 | K134: 1 | L134: 1 | M134: =SUM(F139:F142) -> 6 | O134: Collin Sexton-11 (UTA *) Nassir Little-10 (POR *) Caleb Martin-5 (MIA ) ... Aaron Nesmith-3 (IND *) $ Alperen Sengun-21 (HOU *) Patrick Williams-18 (CHI ) ... Jerami Grant-3 (POR *) Caleb Houstan-0 (ORL *) OG Anunoby-0 (TOR *) $ Lauri Markkanen-25 (UTA *)
A135: 5 | B135: З | C135: Caleb Martin | D135: MIA | E135: Н-О | F135: =MAX(G135,H135,I135) -> 5 | G135: 5 | J135: 6275 | K135: 1 | L135: 0 | M135: =SUM(M133:M134) -> 96
A136: 7 | B136: Ф | C136: Alperen Sengun | D136: HOU | E136: Н-О | F136: =MAX(G136,H136,I136) -> 21 | G136: 21 | J136: 6558 | K136: 1 | L136: 1
A137: 4 | B137: Ф | C137: Patrick Williams | D137: CHI | E137: Н-О | F137: =MAX(G137,H137,I137) -> 18 | G137: 18 | H137: 7 | J137: 6396 | K137: 1 | L137: 0
A138: 10 | B138: Ц | C138: Lauri Markkanen | D138: UTA | E138: Н-О | F138: =MAX(G138,H138,I138) -> 25 | G138: 25 | J138: 5769 | K138: 1 | L138: 1
A139: 1 | B139: З | C139: Aaron Nesmith | D139: IND | E139: Н-О | F139: =MAX(G139,H139,I139) -> 3 | G139: 3 | J139: 6406 | L139: 1
A140: 8 | B140: Ф | C140: Jerami Grant | D140: POR | E140: Н-О | F140: =MAX(G140,H140,I140) -> 3 | G140: 3 | J140: 5350 | L140: 1
A141: 3 | B141: Ф | C141: Caleb Houstan | D141: ORL | E141: Н-О | F141: =MAX(G141,H141,I141) -> 0 | J141: 6722 | L141: 1
A142: 9 | B142: Ф | C142: OG Anunoby | D142: TOR | E142: Н-О | F142: =MAX(G142,H142,I142) -> 0 | J142: 5836 | L142: 1
A143: 2 | B143: З | C143: Derrick White | D143: BOS | E143: Окл | F143: =MAX(G143,H143,I143) -> 23 | G143: 11 | H143: 23 | J143: 5842 | K143: 1 | L143: 0 | M143: =SUM(F143:F148)+N143 -> 68 | O143: (З.Derrick White-23(BOS ), З.Desmond Bane-21(MEM *), З.Dennis Schroder-7(LAL *), Ф.Grant Williams-10(BOS ), Ф.Moritz Wagner-5(ORL *), Ц.Naz Reid-2(MIN *)); скамейка: [З.Josh Giddey-0(OKC *), Ф.Tobias Harris-0(PHI *), Ф.DeAndre Hunter-0(ATL *), Ц.Aleksej Pokusevski-0(OKC *)]
A144: 1 | B144: З | C144: Desmond Bane | D144: MEM | E144: Окл | F144: =MAX(G144,H144,I144) -> 21 | G144: 21 | J144: 6422 | K144: 1 | L144: 1 | M144: =SUM(F149:F152) -> 0 | O144: Derrick White-23 (BOS ) Desmond Bane-21 (MEM *) Dennis Schroder-7 (LAL *) ... Josh Giddey-0 (OKC *) $ Grant Williams-10 (BOS ) Moritz Wagner-5 (ORL *) ... Tobias Harris-0 (PHI *) DeAndre Hunter-0 (ATL *) $ Naz Reid-2 (MIN *) ... Aleksej Pokusevski-0 (OKC *)
A145: 7 | B145: З | C145: Dennis Schroder | D145: LAL | E145: Окл | F145: =MAX(G145,H145,I145) -> 7 | G145: 7 | J145: 5187 | K145: 1 | L145: 1 | M145: =SUM(M143:M144) -> 68
A146: 9 | B146: Ф | C146: Grant Williams | D146: BOS | E146: Окл | F146: =MAX(G146,H146,I146) -> 10 | G146: 4 | H146: 10 | J146: 6210 | K146: 1 | L146: 0
A147: 6 | B147: Ф | C147: Moritz Wagner | D147: ORL | E147: Окл | F147: =MAX(G147,H147,I147) -> 5 | G147: 5 | J147: 6036 | K147: 1 | L147: 1
A148: 10 | B148: Ц | C148: Naz Reid | D148: MIN | E148: Окл | F148: =MAX(G148,H148,I148) -> 2 | G148: 2 | J148: 6253 | K148: 1 | L148: 1
A149: 3 | B149: З | C149: Josh Giddey | D149: OKC | E149: Окл | F149: =MAX(G149,H149,I149) -> 0 | J149: 6548 | L149: 1
A150: 5 | B150: Ф | C150: Tobias Harris | D150: PHI | E150: Окл | F150: =MAX(G150,H150,I150) -> 0 | J150: 4901 | L150: 1
A151: 4 | B151: Ф | C151: DeAndre Hunter | D151: ATL | E151: Окл | F151: =MAX(G151,H151,I151) -> 0 | J151: 6166 | L151: 1
A152: 8 | B152: Ц | C152: Aleksej Pokusevski | D152: OKC | E152: Окл | F152: =MAX(G152,H152,I152) -> 0 | J152: 6409 | L152: 1
A153: 3 | B153: З | C153: Darius Garland | D153: CLE | E153: Орл | F153: =MAX(G153,H153,I153) -> 22 | G153: 22 | J153: 6167 | K153: 1 | L153: 0 | M153: =SUM(F153:F158)+N153 -> 78 | O153: (З.Darius Garland-22(CLE ), З.Malik Monk-13(SAC *), Ф.Franz Wagner-15(ORL *), Ф.John Collins-11(ATL *), Ц.Zach Collins-11(SAS *), Ц.Brandon Clarke-6(MEM *)); скамейка: [З.Marcus Smart-0(BOS ), З.John Wall-0(LAC ), Ф.Luke Kennard-0(LAC ), Ф.Jake LaRavia-0(MEM *)]
A154: 1 | B154: З | C154: Malik Monk | D154: SAC | E154: Орл | F154: =MAX(G154,H154,I154) -> 13 | G154: 13 | J154: 5824 | K154: 1 | L154: 1 | M154: =SUM(F159:F162) -> 0 | O154: Darius Garland-22 (CLE ) Malik Monk-13 (SAC *) ... Marcus Smart-0 (BOS ) John Wall-0 (LAC ) $ Franz Wagner-15 (ORL *) John Collins-11 (ATL *) ... Luke Kennard-0 (LAC ) Jake LaRavia-0 (MEM *) $ Zach Collins-11 (SAS *) Brandon Clarke-6 (MEM *)
A155: 10 | B155: Ф | C155: Franz Wagner | D155: ORL | E155: Орл | F155: =MAX(G155,H155,I155) -> 15 | G155: 15 | J155: 6550 | K155: 1 | L155: 1 | M155: =SUM(M153:M154) -> 78
A156: 9 | B156: Ф | C156: John Collins | D156: ATL | E156: Орл | F156: =MAX(G156,H156,I156) -> 11 | G156: 11 | J156: 5832 | K156: 1 | L156: 1
A157: 8 | B157: Ц | C157: Zach Collins | D157: SAS | E157: Орл | F157: =MAX(G157,H157,I157) -> 11 | G157: 11 | J157: 5823 | K157: 1 | L157: 1
A158: 7 | B158: Ц | C158: Brandon Clarke | D158: MEM | E158: Орл | F158: =MAX(G158,H158,I158) -> 6 | G158: 6 | J158: 6209 | K158: 1 | L158: 1
A159: 5 | B159: З | C159: Marcus Smart | D159: BOS | E159: Орл | F159: =MAX(G159,H159,I159) -> 0 | J159: 5317 | L159: 0
A160: 6 | B160: З | C160: John Wall | D160: LAC | E160: Орл | F160: =MAX(G160,H160,I160) -> 0 | J160: 4716 | L160: 0
A161: 2 | B161: Ф | C161: Luke Kennard | D161: LAC | E161: Орл | F161: =MAX(G161,H161,I161) -> 0 | J161: 5825 | L161: 0
A162: 4 | B162: Ф | C162: Jake LaRavia | D162: MEM | E162: Орл | F162: =MAX(G162,H162,I162) -> 0 | G162: 0 | J162: 6709 | L162: 1
A163: 1 | B163: З | C163: Jalen Green | D163: HOU | E163: С-А | F163: =MAX(G163,H163,I163) -> 42 | G163: 42 | J163: 6513 | K163: 1 | L163: 1 | M163: =SUM(F163:F168)+N163 -> 121 | O163: (З.Jalen Green-42(HOU *), З.Anfernee Simons-26(POR *), З.Dennis Smith Jr.-15(CHA ), Ф.Cameron Johnson-24(PHX ), Ф.Trey Murphy III-10(NOP *), Ц.Jarred Vanderbilt-4(UTA *)); скамейка: [Ф.PJ Washington-9(CHA ), Ф.Kevin Knox II-5(DET ), Ф.Precious Achiuwa-0(TOR *), Ц.Chris Boucher-0(TOR *)]
A164: 3 | B164: З | C164: Anfernee Simons | D164: POR | E164: С-А | F164: =MAX(G164,H164,I164) -> 26 | G164: 26 | J164: 6035 | K164: 1 | L164: 1 | M164: =SUM(F169:F172) -> 14 | O164: Jalen Green-42 (HOU *) Anfernee Simons-26 (POR *) Dennis Smith Jr.-15 (CHA ) $ Cameron Johnson-24 (PHX ) Trey Murphy III-10 (NOP *) ... PJ Washington-9 (CHA ) Kevin Knox II-5 (DET ) Precious Achiuwa-0 (TOR *) $ Jarred Vanderbilt-4 (UTA *) ... Chris Boucher-0 (TOR *)
A165: 9 | B165: З | C165: Dennis Smith Jr. | D165: CHA | E165: С-А | F165: =MAX(G165,H165,I165) -> 15 | G165: 15 | H165: 8 | J165: 5822 | K165: 1 | L165: 0 | M165: =SUM(M163:M164) -> 135
A166: 6 | B166: Ф | C166: Cameron Johnson | D166: PHX | E166: С-А | F166: =MAX(G166,H166,I166) -> 24 | G166: 24 | J166: 6173 | K166: 1 | L166: 0
A167: 5 | B167: Ф | C167: Trey Murphy III | D167: NOP | E167: С-А | F167: =MAX(G167,H167,I167) -> 10 | G167: 10 | J167: 6559 | K167: 1 | L167: 1
A168: 8 | B168: Ц | C168: Jarred Vanderbilt | D168: UTA | E168: С-А | F168: =MAX(G168,H168,I168) -> 4 | G168: 4 | J168: 6052 | K168: 1 | L168: 1
A169: 4 | B169: Ф | C169: PJ Washington | D169: CHA | E169: С-А | F169: =MAX(G169,H169,I169) -> 9 | G169: 3 | H169: 9 | J169: 6174 | L169: 0
A170: 2 | B170: Ф | C170: Kevin Knox II | D170: DET | E170: С-А | F170: =MAX(G170,H170,I170) -> 5 | G170: 5 | J170: 6020 | L170: 0
A171: 7 | B171: Ф | C171: Precious Achiuwa | D171: TOR | E171: С-А | F171: =MAX(G171,H171,I171) -> 0 | J171: 6412 | L171: 1
A172: 10 | B172: Ц | C172: Chris Boucher | D172: TOR | E172: С-А | F172: =MAX(G172,H172,I172) -> 0 | J172: 5894 | L172: 1
A173: 1 | B173: З | C173: Josh Richardson | D173: SAS | E173: Сак | F173: =MAX(G173,H173,I173) -> 11 | G173: 11 | J173: 5500 | K173: 1 | L173: 1 | M173: =SUM(F173:F178)+N173 -> 42 | O173: (З.Josh Richardson-11(SAS *), З.Josh Hart-9(POR *), З.Talen Horton-Tucker-7(UTA *), Ф.Tari Eason-11(HOU *), Ф.Gary Trent Jr.-0(TOR *), Ц.Jaxson Hayes-4(NOP *)); скамейка: [З.Kenrich Williams-0(OKC *), Ф.Cedi Osman-0(CLE ), Ф.Naji Marshall-0(NOP *), Ц.Day'Ron Sharpe-0(BKN *)]
A174: 7 | B174: З | C174: Josh Hart | D174: POR | E174: Сак | F174: =MAX(G174,H174,I174) -> 9 | G174: 9 | J174: 5843 | K174: 1 | L174: 1 | M174: =SUM(F179:F182) -> 0 | O174: Josh Richardson-11 (SAS *) Josh Hart-9 (POR *) Talen Horton-Tucker-7 (UTA *) ... Kenrich Williams-0 (OKC *) $ Tari Eason-11 (HOU *) Gary Trent Jr.-0 (TOR *) ... Cedi Osman-0 (CLE ) Naji Marshall-0 (NOP *) $ Jaxson Hayes-4 (NOP *) ... Day'Ron Sharpe-0 (BKN *)
A175: 4 | B175: З | C175: Talen Horton-Tucker | D175: UTA | E175: Сак | F175: =MAX(G175,H175,I175) -> 7 | G175: 7 | J175: 6234 | K175: 1 | L175: 1 | M175: =SUM(M173:M174) -> 42
A176: 2 | B176: Ф | C176: Tari Eason | D176: HOU | E176: Сак | F176: =MAX(G176,H176,I176) -> 11 | G176: 11 | J176: 6707 | K176: 1 | L176: 1
A177: 8 | B177: Ф | C177: Gary Trent Jr. | D177: TOR | E177: Сак | F177: =MAX(G177,H177,I177) -> 0 | J177: 6048 | K177: 1 | L177: 1
A178: 10 | B178: Ц | C178: Jaxson Hayes | D178: NOP | E178: Сак | F178: =MAX(G178,H178,I178) -> 4 | G178: 4 | J178: 6170 | K178: 1 | L178: 1
A179: 6 | B179: З | C179: Kenrich Williams | D179: OKC | E179: Сак | F179: =MAX(G179,H179,I179) -> 0 | J179: 6076 | L179: 1
A180: 9 | B180: Ф | C180: Cedi Osman | D180: CLE | E180: Сак | F180: =MAX(G180,H180,I180) -> 0 | G180: 0 | J180: 5491 | L180: 0
A181: 3 | B181: Ф | C181: Naji Marshall | D181: NOP | E181: Сак | F181: =MAX(G181,H181,I181) -> 0 | J181: 6499 | L181: 1
A182: 5 | B182: Ц | C182: Day'Ron Sharpe | D182: BKN | E182: Сак | F182: =MAX(G182,H182,I182) -> 0 | J182: 6571 | L182: 1
A183: 3 | B183: З | C183: Donovan Mitchell | D183: CLE | E183: Фил | F183: =MAX(G183,H183,I183) -> 24 | G183: 24 | J183: 5826 | K183: 1 | L183: 0 | M183: =SUM(F183:F188)+N183 -> 91 | O183: (З.Donovan Mitchell-24(CLE ), З.Josh Green-16(DAL ), З.Chris Duarte-11(IND *), Ф.Jeremy Sochan-18(SAS *), Ф.Jaden McDaniels-10(MIN *), Ц.Evan Mobley-12(CLE )); скамейка: [З.Jalen Suggs-3(ORL *), Ф.Xavier Tillman-10(MEM *), Ф.Herbert Jones-6(NOP *), Ц.Jalen Smith-0(IND *)]
A184: 2 | B184: З | C184: Josh Green | D184: DAL | E184: Фил | F184: =MAX(G184,H184,I184) -> 16 | G184: 16 | J184: 6410 | K184: 1 | L184: 0 | M184: =SUM(F189:F192) -> 19 | O184: Donovan Mitchell-24 (CLE ) Josh Green-16 (DAL ) Chris Duarte-11 (IND *) ... Jalen Suggs-3 (ORL *) $ Jeremy Sochan-18 (SAS *) Jaden McDaniels-10 (MIN *) ... Xavier Tillman-10 (MEM *) Herbert Jones-6 (NOP *) $ Evan Mobley-12 (CLE ) ... Jalen Smith-0 (IND *)
A185: 5 | B185: З | C185: Chris Duarte | D185: IND | E185: Фил | F185: =MAX(G185,H185,I185) -> 11 | G185: 11 | J185: 6555 | K185: 1 | L185: 1 | M185: =SUM(M183:M184) -> 110
A186: 6 | B186: Ф | C186: Jeremy Sochan | D186: SAS | E186: Фил | F186: =MAX(G186,H186,I186) -> 18 | G186: 18 | J186: 6699 | K186: 1 | L186: 1
A187: 4 | B187: Ф | C187: Jaden McDaniels | D187: MIN | E187: Фил | F187: =MAX(G187,H187,I187) -> 10 | G187: 10 | J187: 6420 | K187: 1 | L187: 1
A188: 8 | B188: Ц | C188: Evan Mobley | D188: CLE | E188: Фил | F188: =MAX(G188,H188,I188) -> 12 | G188: 12 | J188: 6514 | K188: 1 | L188: 0
A189: 1 | B189: З | C189: Jalen Suggs | D189: ORL | E189: Фил | F189: =MAX(G189,H189,I189) -> 3 | G189: 3 | J189: 6516 | L189: 1
A190: 7 | B190: Ф | C190: Xavier Tillman | D190: MEM | E190: Фил | F190: =MAX(G190,H190,I190) -> 10 | G190: 10 | J190: 6427 | L190: 1
A191: 9 | B191: Ф | C191: Herbert Jones | D191: NOP | E191: Фил | F191: =MAX(G191,H191,I191) -> 6 | G191: 6 | J191: 6577 | L191: 1
A192: 10 | B192: Ц | C192: Jalen Smith | D192: IND | E192: Фил | F192: =MAX(G192,H192,I192) -> 0 | G192: 0 | J192: 6402 | L192: 1
A193: 6 | B193: З | C193: Jamal Murray | D193: DEN | E193: Фин | F193: =MAX(G193,H193,I193) -> 25 | G193: 25 | J193: 5638 | K193: 1 | L193: 1 | M193: =SUM(F193:F198)+N193 -> 116 | O193: (З.Jamal Murray-25(DEN *), З.De'Aaron Fox-17(SAC *), Ф.Bojan Bogdanovic-33(DET ), Ф.Jeff Green-7(DEN *), Ц.Bam Adebayo-30(MIA ), Ц.Isaiah Hartenstein-4(NYK )); скамейка: [З.Devin Booker-0(PHX ), Ф.Brandon Ingram-0(NOP *), Ф.T.J. Warren-0(BKN *), Ф.Georges Niang-0(PHI *)]
A194: 3 | B194: З | C194: De'Aaron Fox | D194: SAC | E194: Фин | F194: =MAX(G194,H194,I194) -> 17 | G194: 17 | J194: 5767 | K194: 1 | L194: 1 | M194: =SUM(F199:F202) -> 0 | O194: Jamal Murray-25 (DEN *) De'Aaron Fox-17 (SAC *) ... Devin Booker-0 (PHX ) $ Bojan Bogdanovic-33 (DET ) Jeff Green-7 (DEN *) ... Brandon Ingram-0 (NOP *) T.J. Warren-0 (BKN *) Georges Niang-0 (PHI *) $ Bam Adebayo-30 (MIA ) Isaiah Hartenstein-4 (NYK )
A195: 8 | B195: Ф | C195: Bojan Bogdanovic | D195: DET | E195: Фин | F195: =MAX(G195,H195,I195) -> 33 | G195: 33 | J195: 4913 | K195: 1 | L195: 0 | M195: =SUM(M193:M194) -> 116
A196: 5 | B196: Ф | C196: Jeff Green | D196: DEN | E196: Фин | F196: =MAX(G196,H196,I196) -> 7 | G196: 7 | J196: 4247 | K196: 1 | L196: 1
A197: 7 | B197: Ц | C197: Bam Adebayo | D197: MIA | E197: Фин | F197: =MAX(G197,H197,I197) -> 30 | G197: 30 | J197: 5827 | K197: 1 | L197: 0
A198: 10 | B198: Ц | C198: Isaiah Hartenstein | D198: NYK | E198: Фин | F198: =MAX(G198,H198,I198) -> 4 | G198: 4 | J198: 5856 | K198: 1 | L198: 0
A199: 2 | B199: З | C199: Devin Booker | D199: PHX | E199: Фин | F199: =MAX(G199,H199,I199) -> 0 | J199: 5473 | L199: 0
A200: 4 | B200: Ф | C200: Brandon Ingram | D200: NOP | E200: Фин | F200: =MAX(G200,H200,I200) -> 0 | J200: 5601 | L200: 1
... 42 more rows

Sheet Расписание
A1: DET | B1: MIL | C1: 1 | D1: 24.01.2023|03:00 | E1: ATL | F1: 1 | G1: Milwaukee Bucks - Detroit Pistons | H1: 32-й тур
A2: ORL | B2: BOS | C2: 1 | D2: 24.01.2023|03:00 | E2: BOS | F2: 0 | G2: Boston Celtics - Orlando Magic | H2: САКРАМЕНТО | I2: - | J2: МЕМФИС | K2: Сак | L2: Мем
A3: HOU | B3: MIN | C3: 1 | D3: 24.01.2023|04:00 | E3: BKN | F3: 1 | G3: Atlanta Hawks - Chicago Bulls | H3: ДАЛЛАС | I3: - | J3: ОКЛАХОМА СИТИ | K3: Дал | L3: Окл
A4: CHI | B4: ATL | C4: 1 | D4: 24.01.2023|04:00 | E4: WAS | F4: 1 | G4: Minnesota Timberwolves - Houston Rockets | H4: МИННЕСОТА | I4: - | J4: ОРЛЕАН | K4: Мин | L4: Н-О
A5: UTA | B5: CHA | C5: 1 | D5: 24.01.2023|05:00 | E5: GSW | F5: 1 | G5: Charlotte Hornets - Utah Jazz | H5: ДЕНВЕР | I5: - | J5: ЮТА | K5: Ден | L5: Юта
A6: POR | B6: SAS | C6: 1 | D6: 24.01.2023|06:00 | E6: DAL | F6: 0 | G6: San Antonio Spurs - Portland Trail Blazers | H6: ФИНИКС | I6: - | J6: САН-АНТОНИО | K6: Фин | L6: С-А
A7: SAC | B7: MEM | C7: 1 | D7: 24.01.2023|06:30 | E7: DEN | F7: 1 | G7: Memphis Grizzlies - Sacramento Kings | H7: ЛЭЙКЕРС | I7: - | J7: ХЬЮСТОН | K7: ЛАЛ | L7: Хью
A8: IND | B8: CHI | C8: 1 | D8: 25.01.2023|03:00 | E8: DET | F8: 0 | G8: Chicago Bulls - Indiana Pacers | H8: ФИЛАДЕЛЬФИЯ | I8: - | J8: БОСТОН | K8: Фил | L8: Бос
A9: NYK | B9: CLE | C9: 1 | D9: 25.01.2023|03:30 | E9: IND | F9: 1 | G9: Boston Celtics - Miami Heat | H9: МАЙАМИ | I9: - | J9: АТЛАНТА | K9: Май | L9: Атл
A10: MIA | B10: BOS | C10: 1 | D10: 25.01.2023|03:30 | E10: CLE | F10: 0 | G10: Cleveland Cavaliers - New York Knicks | H10: ВАШИНГТОН | I10: - | J10: ОРЛАНДО | K10: Ваш | L10: Орл
A11: NOP | B11: DEN | C11: 1 | D11: 25.01.2023|04:00 | E11: LAC | F11: 0 | G11: Denver Nuggets - New Orleans Pelicans | H11: ГОЛДЭН СТЭЙТ | I11: - | J11: ШАРЛОТТ | K11: ГСУ | L11: Шар
A12: DAL | B12: WAS | C12: 1 | D12: 25.01.2023|04:30 | E12: LAL | F12: 1 | G12: Washington Wizards - Dallas Mavericks | H12: КЛИВЛЕНД | I12: - | J12: ЧИКАГО | K12: Клв | L12: Чик
A13: PHX | B13: CHA | C13: 1 | D13: 25.01.2023|05:00 | E13: MIA | F13: 0 | G13: Charlotte Hornets - Phoenix Suns | H13: ИНДИАНА | I13: - | J13: МИЛУОКИ | K13: Инд | L13: Мил
A14: LAL | B14: LAC | C14: 1 | D14: 25.01.2023|06:00 | E14: MEM | F14: 1 | G14: Los Angeles Clippers - Los Angeles Lakers
A15: ORL | B15: IND | D15: 26.01.2023|03:00 | E15: MIL | F15: 1
A16: PHI | B16: BKN | D16: 26.01.2023|03:30 | E16: MIN | F16: 1
A17: HOU | B17: WAS | D17: 26.01.2023|04:00 | E17: NYK | F17: 0
A18: MIL | B18: DEN | D18: 26.01.2023|04:00 | E18: NOP | F18: 1
A19: NOP | B19: MIN | D19: 26.01.2023|04:00 | E19: OKC | F19: 1
A20: OKC | B20: ATL | D20: 26.01.2023|04:00 | E20: ORL | F20: 1
A21: POR | B21: UTA | D21: 26.01.2023|06:00 | E21: POR | F21: 1
A22: SAC | B22: TOR | D22: 26.01.2023|06:00 | E22: SAC | F22: 1
A23: GSW | B23: MEM | D23: 26.01.2023|06:00 | E23: SAS | F23: 1
A24: LAL | B24: SAS | D24: 26.01.2023|06:30 | E24: TOR | F24: 1
E25: PHI | F25: 1
E26: PHX | F26: 0
E27: HOU | F27: 1
E28: CHI | F28: 0
E29: CHA | F29: 0
E30: UTA | F30: 1

Sheet Игры НБА
A1: Milwaukee Bucks | H1: /sports.yahoo.com/nba/teams/milwaukee/
A2: Detroit Pistons | H2: /sports.yahoo.com/nba/teams/detroit/
A3: Starters | B3: Min | C3: Reb | D3: Ast | E3: Stl | F3: Blk | G3: Pts
A4: Giannis Antetokounmpo | B4: 1.104861111 | C4: 12 | D4: 4 | E4: 0 | F4: 0 | G4: 29 | H4: 5185 | I4: Milwaukee Bucks
A5: F
A6: Pat Connaughton | B6: 1.06875 | C6: 2 | D6: 1 | E6: 0 | F6: 0 | G6: 6 | H6: 5501 | I6: Milwaukee Bucks
A7: F
A8: Brook Lopez | B8: 1.001388889 | C8: 4 | D8: 1 | E8: 0 | F8: 2 | G8: 21 | H8: 4472 | I8: Milwaukee Bucks
A9: C
A10: Jrue Holiday | B10: 1.236805556 | C10: 4 | D10: 7 | E10: 2 | F10: 0 | G10: 16 | H10: 4622 | I10: Milwaukee Bucks
A11: G
A12: Grayson Allen | B12: 23:28:00 | C12: 3 | D12: 5 | E12: 3 | F12: 1 | G12: 9 | H12: 6032 | I12: Milwaukee Bucks
A13: G
A14: Starters | B14: Min | C14: Reb | D14: Ast | E14: Stl | F14: Blk | G14: Pts
A15: Saddiq Bey | B15: 1.188194444 | C15: 3 | D15: 2 | E15: 1 | F15: 0 | G15: 21 | H15: 6411 | I15: Detroit Pistons
A16: F
A17: Bojan Bogdanovic | B17: 1.148611111 | C17: 3 | D17: 0 | E17: 1 | F17: 0 | G17: 33 | H17: 4913 | I17: Detroit Pistons
A18: F
A19: Jalen Duren | B19: 1.291666667 | C19: 15 | D19: 1 | E19: 2 | F19: 2 | G19: 23 | H19: 6703 | I19: Detroit Pistons
A20: C
A21: Jaden Ivey | B21: 1.23125 | C21: 4 | D21: 11 | E21: 2 | F21: 0 | G21: 12 | H21: 6695 | I21: Detroit Pistons
A22: G
A23: Isaiah Livers | B23: 21:38:00 | C23: 1 | D23: 1 | E23: 1 | F23: 0 | G23: 9 | H23: 6584 | I23: Detroit Pistons
A24: G
A25: Bench | B25: Min | C25: Reb | D25: Ast | E25: Stl | F25: Blk | G25: Pts
A26: Bobby Portis | B26: 23:05:00 | C26: 10 | D26: 3 | E26: 1 | F26: 0 | G26: 18 | H26: 5482 | I26: Milwaukee Bucks
A27: Joe Ingles | B27: 18:59:00 | C27: 3 | D27: 3 | E27: 2 | F27: 1 | G27: 6 | H27: 5393 | I27: Milwaukee Bucks
A28: Jevon Carter | B28: 15:43:00 | C28: 3 | D28: 3 | E28: 3 | F28: 1 | G28: 18 | H28: 6043 | I28: Milwaukee Bucks
A29: Khris Middleton | B29: 15:19:00 | C29: 2 | D29: 4 | E29: 0 | F29: 0 | G29: 8 | H29: 5073 | I29: Milwaukee Bucks
A30: Jordan Nwora | B30: 13:33:00 | C30: 4 | D30: 4 | E30: 0 | F30: 1 | G30: 4 | H30: 6437 | I30: Milwaukee Bucks
A31: MarJon Beauchamp | B31: 07:33:00 | C31: 0 | D31: 1 | E31: 0 | F31: 0 | G31: 7 | H31: 6714 | I31: Milwaukee Bucks
A32: Wesley Matthews | B32: 06:53:00 | C32: 0 | D32: 1 | E32: 0 | F32: 0 | G32: 6 | H32: 4694 | I32: Milwaukee Bucks
A33: A.J. Green | B33: 05:02:00 | C33: 1 | D33: 0 | E33: 0 | F33: 0 | G33: 0 | H33: 6755 | I33: Milwaukee Bucks
A34: Thanasis Antetokounmpo | B34: 04:32:00 | C34: 2 | D34: 1 | E34: 0 | F34: 0 | G34: 2 | H34: 5362 | I34: Milwaukee Bucks
A35: Serge Ibaka | B35: - | C35: - | D35: - | E35: - | F35: - | G35: - | H35: 4486 | I35: Milwaukee Bucks
A36: Sandro Mamukelashvili | B36: - | C36: - | D36: - | E36: - | F36: - | G36: - | H36: 6596 | I36: Milwaukee Bucks
A37: George Hill | B37: DNP – Coach's Decision | H37: 4488
A38: Totals | C38: 50 | D38: 38 | E38: 11 | F38: 6 | G38: 150
A39: Bench | B39: Min | C39: Reb | D39: Ast | E39: Stl | F39: Blk | G39: Pts
A40: Hamidou Diallo | B40: 20:40:00 | C40: 3 | D40: 1 | E40: 1 | F40: 0 | G40: 11 | H40: 6056 | I40: Detroit Pistons
A41: Kevin Knox II | B41: 19:23:00 | C41: 5 | D41: 0 | E41: 1 | F41: 0 | G41: 5 | H41: 6020 | I41: Detroit Pistons
A42: Rodney McGruder | B42: 18:38:00 | C42: 1 | D42: 2 | E42: 0 | F42: 0 | G42: 4 | H42: 5270 | I42: Detroit Pistons
A43: Alec Burks | B43: 18:30:00 | C43: 1 | D43: 1 | E43: 1 | F43: 0 | G43: 4 | H43: 4893 | I43: Detroit Pistons
A44: Cory Joseph | B44: 18:27:00 | C44: 3 | D44: 7 | E44: 0 | F44: 1 | G44: 5 | H44: 4911 | I44: Detroit Pistons
A45: Nerlens Noel | B45: 06:06:00 | C45: 2 | D45: 0 | E45: 0 | F45: 0 | G45: 3 | H45: 5157 | I45: Detroit Pistons
A46: Marvin Bagley III | B46: - | C46: - | D46: - | E46: - | F46: - | G46: - | H46: 5959 | I46: Detroit Pistons
A47: Buddy Boeheim | B47: - | C47: - | D47: - | E47: - | F47: - | G47: - | H47: 6752 | I47: Detroit Pistons
A48: Cade Cunningham | B48: - | C48: - | D48: - | E48: - | F48: - | G48: - | H48: 6512 | I48: Detroit Pistons
A49: Jared Rhoden | B49: - | C49: - | D49: - | E49: - | F49: - | G49: - | H49: 6803 | I49: Detroit Pistons
A50: Isaiah Stewart | B50: - | C50: - | D50: - | E50: - | F50: - | G50: - | H50: 6408 | I50: Detroit Pistons
A51: Killian Hayes | B51: DNP – Injury/Illness | H51: 6399
A52: Boston Celtics | H52: /sports.yahoo.com/nba/teams/boston/
A53: Orlando Magic | H53: /sports.yahoo.com/nba/teams/orlando/
A54: Starters | B54: Min | C54: Reb | D54: Ast | E54: Stl | F54: Blk | G54: Pts
A55: Jayson Tatum | B55: 1.568055556 | C55: 6 | D55: 7 | E55: 1 | F55: 0 | G55: 26 | H55: 5765 | I55: Boston Celtics
A56: F
A57: Al Horford | B57: 1.255555556 | C57: 4 | D57: 3 | E57: 1 | F57: 0 | G57: 6 | H57: 4245 | I57: Boston Celtics
A58: F
A59: Blake Griffin | B59: 11:30:00 | C59: 3 | D59: 0 | E59: 1 | F59: 0 | G59: 3 | H59: 4561 | I59: Boston Celtics
A60: C
A61: Jaylen Brown | B61: 1.539583333 | C61: 5 | D61: 3 | E61: 1 | F61: 0 | G61: 26 | H61: 5602 | I61: Boston Celtics
A62: G
A63: Derrick White | B63: 1.105555556 | C63: 4 | D63: 4 | E63: 1 | F63: 2 | G63: 11 | H63: 5842 | I63: Boston Celtics
A64: G
A65: Starters | B65: Min | C65: Reb | D65: Ast | E65: Stl | F65: Blk | G65: Pts
A66: Paolo Banchero | B66: 1.489583333 | C66: 5 | D66: 2 | E66: 0 | F66: 0 | G66: 23 | H66: 6691 | I66: Orlando Magic
A67: F
A68: Franz Wagner | B68: 1.386805556 | C68: 7 | D68: 6 | E68: 1 | F68: 0 | G68: 15 | H68: 6550 | I68: Orlando Magic
A69: F
A70: Wendell Carter Jr. | B70: 1.361111111 | C70: 11 | D70: 1 | E70: 1 | F70: 0 | G70: 21 | H70: 6018 | I70: Orlando Magic
A71: C
A72: Markelle Fultz | B72: 1.332638889 | C72: 4 | D72: 5 | E72: 0 | F72: 1 | G72: 8 | H72: 5763 | I72: Orlando Magic
A73: G
A74: Gary Harris | B74: 1.029861111 | C74: 1 | D74: 1 | E74: 2 | F74: 0 | G74: 5 | H74: 5330 | I74: Orlando Magic
A75: G
A76: Bench | B76: Min | C76: Reb | D76: Ast | E76: Stl | F76: Blk | G76: Pts
A77: Payton Pritchard | B77: 1.282638889 | C77: 3 | D77: 4 | E77: 0 | F77: 0 | G77: 5 | H77: 6418 | I77: Boston Celtics
A78: Grant Williams | B78: 1.01875 | C78: 4 | D78: 2 | E78: 0 | F78: 1 | G78: 4 | H78: 6210 | I78: Boston Celtics
A79: Sam Hauser | B79: 18:52:00 | C79: 2 | D79: 1 | E79: 0 | F79: 1 | G79: 13 | H79: 6619 | I79: Boston Celtics
A80: Luke Kornet | B80: 14:37:00 | C80: 5 | D80: 0 | E80: 0 | F80: 0 | G80: 4 | H80: 5903 | I80: Boston Celtics
A81: Mfiondu Kabengele | B81: 05:42:00 | C81: 1 | D81: 0 | E81: 0 | F81: 0 | G81: 0 | H81: 6215 | I81: Boston Celtics
A82: JD Davison | B82: 01:25:00 | C82: 0 | D82: 0 | E82: 0 | F82: 0 | G82: 0 | H82: 6743 | I82: Boston Celtics
A83: Justin Jackson | B83: 01:25:00 | C83: 0 | D83: 0 | E83: 0 | F83: 0 | G83: 0 | H83: 5828 | I83: Boston Celtics
A84: Malcolm Brogdon | B84: Inactive – Personal | H84: 5667
A85: Danilo Gallinari | B85: Inactive - Injury/Illness | H85: 4468
A86: Marcus Smart | B86: Inactive - Injury/Illness | H86: 5317
A87: Robert Williams III | B87: Inactive - Injury/Illness | H87: 6038
A88: Totals | C88: 37 | D88: 24 | E88: 5 | F88: 4 | G88: 98
A89: Bench | B89: Min | C89: Reb | D89: Ast | E89: Stl | F89: Blk | G89: Pts
A90: Cole Anthony | B90: 23:17:00 | C90: 5 | D90: 4 | E90: 2 | F90: 1 | G90: 18 | H90: 6407 | I90: Orlando Magic
A91: Bol Bol | B91: 17:22:00 | C91: 2 | D91: 0 | E91: 0 | F91: 1 | G91: 5 | H91: 6232 | I91: Orlando Magic
A92: Jalen Suggs | B92: 16:01:00 | C92: 0 | D92: 2 | E92: 1 | F92: 0 | G92: 3 | H92: 6516 | I92: Orlando Magic
A93: Moritz Wagner | B93: 15:20:00 | C93: 2 | D93: 0 | E93: 1 | F93: 0 | G93: 5 | H93: 6036 | I93: Orlando Magic
A94: Jonathan Isaac | B94: 09:36:00 | C94: 3 | D94: 1 | E94: 2 | F94: 0 | G94: 10 | H94: 5768 | I94: Orlando Magic
A95: Admiral Schofield | B95: - | C95: - | D95: - | E95: - | F95: - | G95: - | H95: 6230 | I95: Orlando Magic
A96: Mo Bamba | B96: DNP – Coach's Decision | H96: 6017
A97: R.J. Hampton | B97: DNP – Coach's Decision | H97: 6416
A98: Terrence Ross | B98: DNP – Coach's Decision | H98: 5014
A99: Kevon Harris | B99: Inactive - G League - Two-Way | H99: 6767
A100: Caleb Houstan | B100: Inactive - G League - On Assignment | H100: 6722
A101: Chuma Okeke | B101: Inactive - Injury/Illness | H101: 6204
A102: Atlanta Hawks | H102: /sports.yahoo.com/nba/teams/atlanta/
A103: Chicago Bulls | H103: /sports.yahoo.com/nba/teams/chicago/
A104: Starters | B104: Min | C104: Reb | D104: Ast | E104: Stl | F104: Blk | G104: Pts
A105: John Collins | B105: 1.488888889 | C105: 9 | D105: 0 | E105: 2 | F105: 1 | G105: 11 | H105: 5832 | I105: Atlanta Hawks
A106: F
A107: Bogdan Bogdanovic | B107: 1.363194444 | C107: 1 | D107: 4 | E107: 1 | F107: 0 | G107: 11 | H107: 5338 | I107: Atlanta Hawks
A108: F
A109: Clint Capela | B109: 1.5 | C109: 12 | D109: 1 | E109: 2 | F109: 2 | G109: 16 | H109: 5336 | I109: Atlanta Hawks
A110: C
A111: Trae Young | B111: 1.565972222 | C111: 3 | D111: 13 | E111: 0 | F111: 0 | G111: 21 | H111: 6016 | I111: Atlanta Hawks
A112: G
A113: Dejounte Murray | B113: 1.520138889 | C113: 7 | D113: 4 | E113: 0 | F113: 0 | G113: 20 | H113: 5660 | I113: Atlanta Hawks
A114: G
A115: Starters | B115: Min | C115: Reb | D115: Ast | E115: Stl | F115: Blk | G115: Pts
A116: DeMar DeRozan | B116: 1.554861111 | C116: 1 | D116: 6 | E116: 3 | F116: 0 | G116: 26 | H116: 4614 | I116: Chicago Bulls
A117: F
A118: Patrick Williams | B118: 1.279861111 | C118: 10 | D118: 2 | E118: 1 | F118: 0 | G118: 18 | H118: 6396 | I118: Chicago Bulls
A119: F
A120: Nikola Vucevic | B120: 1.615972222 | C120: 17 | D120: 7 | E120: 1 | F120: 0 | G120: 14 | H120: 4897 | I120: Chicago Bulls
A121: C
A122: Zach LaVine | B122: 1.449305556 | C122: 6 | D122: 2 | E122: 2 | F122: 0 | G122: 20 | H122: 5324 | I122: Chicago Bulls
A123: G
A124: Ayo Dosunmu | B124: 1.200694444 | C124: 1 | D124: 5 | E124: 1 | F124: 1 | G124: 2 | H124: 6580 | I124: Chicago Bulls
A125: G
A126: Bench | B126: Min | C126: Reb | D126: Ast | E126: Stl | F126: Blk | G126: Pts
A127: AJ Griffin | B127: 1.279166667 | C127: 3 | D127: 2 | E127: 0 | F127: 0 | G127: 11 | H127: 6706 | I127: Atlanta Hawks
A128: Jalen Johnson | B128: 15:03:00 | C128: 6 | D128: 0 | E128: 0 | F128: 0 | G128: 3 | H128: 6562 | I128: Atlanta Hawks
A129: Aaron Holiday | B129: 11:14:00 | C129: 1 | D129: 0 | E129: 0 | F129: 0 | G129: 5 | H129: 6034 | I129: Atlanta Hawks
A130: Frank Kaminsky | B130: 04:30:00 | C130: 1 | D130: 0 | E130: 1 | F130: 1 | G130: 2 | H130: 5469 | I130: Atlanta Hawks
A131: Trent Forrest | B131: - | C131: - | D131: - | E131: - | F131: - | G131: - | H131: 6464 | I131: Atlanta Hawks
A132: Justin Holiday | B132: DNP – Coach's Decision | H132: 5142
A133: De'Andre Hunter | B133: DND - Injury/Illness | H133: 6166
A134: Vit Krejci | B134: DNP – Coach's Decision | H134: 6429
A135: Tyrese Martin | B135: DNP – Coach's Decision | H135: 6741
A136: Onyeka Okongwu | B136: Inactive - Injury/Illness | H136: 6398
A137: Totals | C137: 43 | D137: 24 | E137: 6 | F137: 4 | G137: 100
A138: Bench | B138: Min | C138: Reb | D138: Ast | E138: Stl | F138: Blk | G138: Pts
A139: Alex Caruso | B139: 1.167361111 | C139: 4 | D139: 2 | E139: 3 | F139: 1 | G139: 12 | H139: 5754 | I139: Chicago Bulls
A140: Coby White | B140: 21:39:00 | C140: 3 | D140: 3 | E140: 2 | F140: 0 | G140: 10 | H140: 6169 | I140: Chicago Bulls
A141: Derrick Jones Jr. | B141: 16:28:00 | C141: 4 | D141: 1 | E141: 0 | F141: 1 | G141: 5 | H141: 5747 | I141: Chicago Bulls
A142: Andre Drummond | B142: 03:27:00 | C142: 1 | D142: 0 | E142: 0 | F142: 0 | G142: 4 | H142: 5015 | I142: Chicago Bulls
A143: Tony Bradley | B143: DNP – Coach's Decision | H143: 5841
A144: Malcolm Hill | B144: DNP – Coach's Decision | H144: 6660
A145: Carlik Jones | B145: DNP – Coach's Decision | H145: 6639
A146: Marko Simonovic | B146: DNP – Coach's Decision | H146: 6436
A147: Dalen Terry | B147: DNP – Coach's Decision | H147: 6708
A148: Lonzo Ball | B148: Inactive - Injury/Illness | H148: 5764
A149: Goran Dragic | B149: Inactive - Injury/Illness | H149: 4507
A150: Javonte Green | B150: Inactive - Injury/Illness | H150: 6269
A151: Minnesota Timberwolves | H151: /sports.yahoo.com/nba/teams/minnesota/
A152: Houston Rockets | H152: /sports.yahoo.com/nba/teams/houston/
A153: Starters | B153: Min | C153: Reb | D153: Ast | E153: Stl | F153: Blk | G153: Pts
A154: Jaden McDaniels | B154: 1.442361111 | C154: 4 | D154: 1 | E154: 0 | F154: 0 | G154: 10 | H154: 6420 | I154: Minnesota Timberwolves
A155: F
A156: Kyle Anderson | B156: 12:24:00 | C156: 0 | D156: 1 | E156: 0 | F156: 0 | G156: 2 | H156: 5341 | I156: Minnesota Timberwolves
A157: F
A158: Rudy Gobert | B158: 1.482638889 | C158: 16 | D158: 1 | E158: 0 | F158: 4 | G158: 15 | H158: 5197 | I158: Minnesota Timberwolves
A159: C
A160: D'Angelo Russell | B160: 1.767361111 | C160: 3 | D160: 7 | E160: 2 | F160: 0 | G160: 30 | H160: 5433 | I160: Minnesota Timberwolves
A161: G
A162: Anthony Edwards | B162: 1.550694444 | C162: 3 | D162: 5 | E162: 4 | F162: 1 | G162: 31 | H162: 6355 | I162: Minnesota Timberwolves
A163: G
A164: Starters | B164: Min | C164: Reb | D164: Ast | E164: Stl | F164: Blk | G164: Pts
A165: Kenyon Martin Jr. | B165: 1.372222222 | C165: 7 | D165: 2 | E165: 3 | F165: 0 | G165: 6 | H165: 6444 | I165: Houston Rockets
A166: F
A167: Tari Eason | B167: 1.086805556 | C167: 9 | D167: 3 | E167: 3 | F167: 2 | G167: 11 | H167: 6707 | I167: Houston Rockets
A168: F
A169: Alperen Sengun | B169: 1.45 | C169: 7 | D169: 7 | E169: 0 | F169: 0 | G169: 21 | H169: 6558 | I169: Houston Rockets
A170: C
A171: Jalen Green | B171: 1.463194444 | C171: 4 | D171: 4 | E171: 1 | F171: 1 | G171: 42 | H171: 6513 | I171: Houston Rockets
A172: G
A173: Eric Gordon | B173: 1.26875 | C173: 4 | D173: 4 | E173: 1 | F173: 1 | G173: 14 | H173: 4469 | I173: Houston Rockets
A174: G
A175: Bench | B175: Min | C175: Reb | D175: Ast | E175: Stl | F175: Blk | G175: Pts
A176: Austin Rivers | B176: 1.113888889 | C176: 6 | D176: 3 | E176: 0 | F176: 0 | G176: 10 | H176: 5016 | I176: Minnesota Timberwolves
A177: Jaylen Nowell | B177: 18:56:00 | C177: 3 | D177: 0 | E177: 1 | F177: 0 | G177: 7 | H177: 6231 | I177: Minnesota Timberwolves
A178: Nathan Knight | B178: 16:16:00 | C178: 4 | D178: 1 | E178: 0 | F178: 1 | G178: 4 | H178: 6462 | I178: Minnesota Timberwolves
A179: Naz Reid | B179: 09:08:00 | C179: 1 | D179: 0 | E179: 1 | F179: 1 | G179: 2 | H179: 6253 | I179: Minnesota Timberwolves
A180: Matt Ryan | B180: 06:42:00 | C180: 1 | D180: 0 | E180: 0 | F180: 0 | G180: 3 | H180: 6654 | I180: Minnesota Timberwolves
A181: Bryn Forbes | B181: DNP – Coach's Decision | H181: 5726
A182: Luka Garza | B182: DNP – Coach's Decision | H182: 6594
A183: Wendell Moore Jr. | B183: DNP – Coach's Decision | H183: 6716
A184: Jordan McLaughlin | B184: Inactive - Injury/Illness | H184: 6133
A185: Josh Minott | B185: Inactive - G League - On Assignment | H185: 6735
A186: Taurean Prince | B186: Inactive - Injury/Illness | H186: 5643
A187: Karl-Anthony Towns | B187: Inactive - Injury/Illness | H187: 5432
A188: Totals | C188: 41 | D188: 19 | E188: 8 | F188: 7 | G188: 114
A189: Bench | B189: Min | C189: Reb | D189: Ast | E189: Stl | F189: Blk | G189: Pts
A190: Garrison Mathews | B190: 1.185416667 | C190: 3 | D190: 0 | E190: 0 | F190: 0 | G190: 10 | H190: 6259 | I190: Houston Rockets
A191: Jae'Sean Tate | B191: 22:18:00 | C191: 7 | D191: 1 | E191: 1 | F191: 0 | G191: 11 | H191: 6463 | I191: Houston Rockets
A192: TyTy Washington Jr. | B192: 12:53:00 | C192: 1 | D192: 1 | E192: 1 | F192: 0 | G192: 0 | H192: 6719 | I192: Houston Rockets
A193: Bruno Fernando | B193: 11:07:00 | C193: 4 | D193: 2 | E193: 1 | F193: 1 | G193: 4 | H193: 6222 | I193: Houston Rockets
A194: Josh Christopher | B194: 03:51:00 | C194: 1 | D194: 0 | E194: 0 | F194: 0 | G194: 0 | H194: 6566 | I194: Houston Rockets
A195: Usman Garuba | B195: 02:01:00 | C195: 0 | D195: 0 | E195: 0 | F195: 0 | G195: 0 | H195: 6565 | I195: Houston Rockets
A196: Boban Marjanovic | B196: DNP – Coach's Decision | H196: 5524
A197: Daishen Nix | B197: DNP – Coach's Decision | H197: 6626
A198: Darius Days | B198: Inactive - G League - Two-Way | H198: 6763
A199: Trevor Hudgins | B199: Inactive - G League - Two-Way | H199: 6756
A200: Kevin Porter Jr. | B200: Inactive - Injury/Illness | H200: 6218
... 502 more rows
